bitfinex-derivatives/quotes_SOLF0:USTF0_20241230
["timestamp","ask_amount","ask_price","bid_price","bid_amount"]
[1735545121467,8.35754721,191.84,191.81,3.0]
[1735545122563,8.35754721,191.84,191.77,11.35754721]
[1735545124261,8.35754721,191.82,191.77,3.0]
[1735545124466,8.35754721,191.82,191.76,3.0]
[1735545124669,8.35754721,191.82,191.75,10.59701435]
[1735545124966,8.35754721,191.82,191.76,3.0]
[1735545125966,8.35754721,191.82,191.75,10.59701435]
[1735545126365,8.35754721,191.82,191.74,6.1368]
[1735545126564,8.35754721,191.82,191.74,14.49434721]
[1735545126764,8.35754721,191.8,191.67,161.32948616]
[1735545126963,8.35754721,191.78,191.72,10.23742578]
[1735545127463,8.35754721,191.78,191.72,3.0]
[1735545127661,8.35754721,191.78,191.71,18.20787299]
[1735545127859,8.35754721,191.78,191.71,18.59497299]
[1735545128066,8.35754721,191.78,191.71,10.23742578]
[1735545128467,8.35754721,191.78,191.71,3.0]
[1735545130270,8.35754721,191.76,191.71,3.0]
[1735545130572,8.35754721,191.76,191.69,11.35754721]
[1735545131674,8.35754721,191.89,191.8,2.6117]
[1735545131874,8.35754721,191.89,191.81,11.35754721]
[1735545132469,8.35754721,191.87,191.81,11.35754721]
[1735545133274,8.35754721,191.87,191.81,3.0]
[1735545135682,8.35754721,191.85,191.81,3.0]
[1735545138784,8.35754721,191.83,191.76,4.7265]
[1735545138983,8.35754721,191.83,191.77,3.0]
[1735545140676,8.35754721,191.81,191.75,8.35754721]
[1735545140883,8.35754721,191.81,191.75,11.35754721]
[1735545141186,8.35754721,191.82,191.75,11.35754721]
[1735545143177,8.35754721,191.82,191.75,3.0]
[1735545144683,8.35754721,191.84,191.75,11.35754721]
[1735545144883,8.35754721,191.84,191.77,8.35754721]
[1735545145584,8.35754721,191.86,191.79,8.35754721]
[1735545145783,8.35754721,191.86,191.8,5.9879]
[1735545145976,8.35754721,191.86,191.8,8.5995]
[1735545149185,8.35754721,191.89,191.81,8.35754721]
[1735545149386,8.35754721,191.91,191.85,8.35754721]
[1735545149595,32.20319583,191.95,191.86,3.0]
[1735545149596,8.35754721,191.93,191.86,3.0]
[1735545149792,8.35754721,191.93,191.87,2.6108]
[1735545150181,8.35754721,191.93,191.86,5.6109]
[1735545150383,8.35754721,191.91,191.86,3.0]
[1735545151482,8.35754721,191.93,191.86,3.0]
[1735545152287,8.35754721,191.93,191.87,2.6108]
[1735545153489,8.35754721,191.93,191.89,2.6105]
[1735545153792,8.35754721,191.93,191.87,8.35754721]
[1735545154193,8.35754721,191.93,191.89,2.6104]
[1735545154592,40.56074304,191.95,191.89,2.6104]
[1735545154895,40.56074304,191.95,191.88,2.6106]
[1735545163505,8.35754721,191.93,191.87,14.06294721]
[1735545164394,8.35754721,191.91,191.88,3.0]
[1735545165695,8.35754721,191.93,191.88,3.0]
[1735545168709,8.35754721,191.93,191.87,6.0946]
[1735545172612,8.35754721,191.93,191.84,2.6112]
[1735545172814,8.35754721,191.89,191.84,3.0]
[1735545174211,8.35754721,191.89,191.81,12.54264721]
[1735545174405,8.35754721,191.89,191.82,3.0]
[1735545175623,8.35754721,191.91,191.85,8.35754721]
[1735545175824,8.35754721,191.93,191.85,8.35754721]
[1735545176026,8.35754721,191.93,191.87,2.6108]
[1735545176219,8.35754721,191.93,191.87,5.6108]
[1735545181234,40.56074304,191.95,191.89,8.35754721]
[1735545181432,40.56074304,191.95,191.87,3.0]
[1735545181731,40.56074304,191.95,191.88,8.35754721]
[1735545182630,40.56074304,191.95,191.89,2.6105]
[1735545187240,40.56074304,191.95,191.88,10.96814721]
[1735545188735,32.20319583,191.95,191.88,8.35754721]
[1735545189035,8.35754721,191.98,191.92,8.35754721]
[1735545189229,8.35754721,191.98,191.93,3.0]
[1735545189937,21.57012295,192.04,191.93,3.0]
[1735545190136,8.35754721,192.02,191.95,2.6096]
[1735545191339,8.35754721,192.02,191.94,10.96734721]
[1735545191736,8.35754721,192.02,191.94,8.35754721]
[1735545191934,8.35754721,192.0,191.93,3.0]
[1735545193339,8.35754721,192.0,191.94,3.0]
[1735545194442,8.35754721,191.98,191.93,3.0]
[1735545196345,8.35754721,191.96,191.9,3.0]
[1735545196546,8.35754721,191.94,191.88,3.1443]
[1735545196745,8.35754721,191.94,191.88,6.1443]
[1735545197850,8.35754721,191.94,191.88,3.1443]
[1735545198038,8.35754721,191.94,191.88,6.1443]
[1735545198443,8.35754721,191.94,191.88,3.1443]
[1735545198644,8.35754721,191.94,191.88,6.1443]
[1735545199049,8.35754721,191.94,191.88,3.0]
[1735545200745,8.35754721,191.96,191.89,8.35754721]
[1735545201248,8.35754721,191.96,191.9,2.6103]
[1735545201552,8.35754721,191.98,191.91,8.35754721]
[1735545204853,8.35754721,191.98,191.91,10.96774721]
[1735545214450,8.35754721,191.98,191.91,8.35754721]
[1735545214658,8.35754721,191.94,191.89,3.0]
[1735545216265,8.35754721,191.94,191.87,8.35754721]
[1735545216462,8.35754721,191.94,191.87,11.35754721]
[1735545220257,8.35754721,191.94,191.88,3.0]
[1735545223665,8.35754721,191.94,191.83,4.6409]
[1735545223866,8.35754721,191.92,191.84,11.35754721]
[1735545225061,8.35754721,191.92,191.84,13.96874721]
[1735545231967,8.35754721,191.9,191.84,13.96874721]
[1735545236877,8.35754721,191.9,191.84,11.35754721]
[1735545237077,8.35754721,191.9,191.85,2.611]
[1735545237679,3.0,191.99,191.85,2.611]
[1735545237870,8.35754721,191.91,191.85,2.611]
[1735545238376,8.35754721,191.93,191.86,10.96834721]
[1735545244080,8.35754721,191.93,191.86,13.96834721]
[1735545245179,3.0,191.98,191.86,13.96834721]
[1735545245477,8.35754721,191.92,191.86,13.96834721]
[1735545249577,3.0,191.98,191.86,13.96834721]
[1735545249782,8.35754721,191.92,191.86,13.96834721]
[1735545254685,8.35754721,191.96,191.88,8.35754721]
[1735545255189,8.35754721,191.96,191.9,10.96794721]
[1735545258383,8.35754721,191.96,191.9,13.96794721]
[1735545260083,29.69976515,192.02,191.92,2.6101]
[1735545260283,8.35754721,191.99,191.92,8.35754721]
[1735545260786,8.35754721,191.99,191.94,2.6098]
[1735545261188,8.35754721,191.99,191.92,8.35754721]
[1735545261390,29.69976515,192.02,191.93,2.6099]
[1735545261988,8.35754721,191.99,191.93,2.6099]
[1735545264688,29.69976515,192.02,191.93,2.6099]
[1735545264991,8.35754721,192.0,191.94,2.6098]
[1735545265485,29.69976515,192.02,191.94,8.35754721]
[1735545265787,8.35754721,192.03,191.96,8.35754721]
[1735545266486,8.35754721,192.03,191.98,2.6092]
[1735545267292,1.56688915,192.07,191.98,2.6092]
[1735545267496,8.35754721,192.03,191.98,2.6092]
[1735545269483,8.35754721,192.03,191.98,2.6093]
[1735545269982,8.35754721,192.03,191.96,8.35754721]
[1735545270190,8.35754721,192.03,191.97,2.6094]
[1735545270793,1.56688915,192.07,191.97,2.6094]
[1735545270983,1.56688915,192.07,191.98,2.6093]
[1735545271290,8.35754721,192.04,191.98,2.6093]
[1735545271993,8.35754721,192.04,191.97,2.6094]
[1735545275892,8.35754721,192.05,191.98,10.96684721]
[1735545276093,8.35754721,192.07,192.0,8.35754721]
[1735545276295,8.35754721,192.07,192.0,11.35754721]
[1735545277601,8.35754721,192.09,192.02,8.35754721]
[1735545278294,8.35754721,192.09,192.02,10.96634721]
[1735545278498,8.35754721,192.09,192.02,8.35754721]
[1735545280099,39.9427104,192.11,192.02,10.96624721]
[1735545281500,39.9427104,192.11,192.02,10.96634721]
[1735545282694,39.9427104,192.11,192.04,8.35754721]
[1735545282902,31.58516319,192.11,192.06,8.35754721]
[1735545283693,21.59179747,192.22,192.1,8.35754721]
[1735545283892,8.35754721,192.18,192.12,8.35754721]
[1735545284096,8.35754721,192.18,192.12,11.35754721]
[1735545285800,8.35754721,192.2,192.14,8.35754721]
[1735545286201,8.35754721,192.22,192.14,8.35754721]
[1735545290404,8.35754721,192.2,192.07,1.5357]
[1735545290598,8.35754721,192.18,192.1,8.35754721]
[1735545290801,8.35754721,192.16,192.1,11.35754721]
[1735545297009,8.35754721,192.18,192.1,11.35754721]
[1735545299705,8.35754721,192.16,192.1,8.35754721]
[1735545300009,8.35754721,192.16,192.09,3.0]
[1735545302911,8.35754721,192.14,192.08,11.50364721]
[1735545303314,8.35754721,192.14,192.08,3.1461]
[1735545303507,8.35754721,192.14,192.07,3.0]
[1735545304208,8.35754721,192.12,192.03,3.0838]
[1735545304408,8.35754721,192.12,192.05,8.35754721]
[1735545305208,8.35754721,192.12,192.05,11.35754721]
[1735545307116,8.35754721,192.12,192.05,8.35754721]
[1735545313020,8.35754721,192.1,192.03,3.0838]
[1735545323122,8.35754721,192.08,192.02,49.2457225]
[1735545323325,8.35754721,192.06,192.0,9.85294721]
[1735545323526,8.35754721,192.04,191.99,3.0]
[1735545323720,8.35754721,192.04,191.97,5.9365]
[1735545324131,8.35754721,192.04,191.97,2.9365]
[1735545324331,8.35754721,192.02,191.97,2.9365]
[1735545324730,8.35754721,192.02,191.96,8.35754721]
[1735545324931,8.35754721,192.02,191.95,3.0]
[1735545325131,8.35754721,192.02,191.94,8.35754721]
[1735545328535,8.35754721,192.0,191.94,8.35754721]
[1735545328736,8.35754721,192.0,191.93,3.0]
[1735545329939,8.35754721,192.0,191.94,8.35754721]
[1735545330437,8.35754721,192.0,191.93,3.0]
[1735545331035,8.35754721,192.0,191.92,11.35754721]
[1735545332540,8.35754721,192.0,191.92,3.0]
[1735545332741,8.35754721,192.0,191.92,11.35754721]
[1735545333639,8.35754721,192.0,191.92,8.35754721]
[1735545333840,8.35754721,192.0,191.92,11.35754721]
[1735545334239,8.35754721,191.98,191.91,3.0603]
[1735545334541,8.35754721,191.96,191.89,12.92224721]
[1735545334736,8.35754721,191.96,191.89,9.92224721]
[1735545335438,8.35754721,191.98,191.91,8.35754721]
[1735545340238,8.35754721,191.98,191.91,11.35754721]
[1735545343550,8.35754721,191.96,191.91,3.0]
[1735545343850,8.35754721,191.96,191.89,9.92224721]
[1735545344345,3.0,192.0,191.89,9.92224721]
[1735545344544,8.35754721,191.96,191.89,9.92224721]
[1735545350754,8.35754721,191.96,191.89,1.5647]
[1735545351853,8.35754721,191.94,191.89,1.5647]
[1735545353961,8.35754721,191.92,191.86,5.6108]
[1735545360862,39.01438905,192.0,191.86,5.6108]
[1735545361063,8.35754721,191.92,191.86,5.6108]
[1735545362259,39.01438905,192.0,191.86,5.6108]
[1735545362466,8.35754721,191.92,191.86,5.6108]
[1735545364765,8.35754721,191.92,191.86,11.35754721]
[1735545364967,8.35754721,191.94,191.88,8.35754721]
[1735545365165,8.35754721,191.96,191.9,8.35754721]
[1735545365567,8.35754721,191.96,191.91,2.6101]
[1735545369468,8.35754721,191.96,191.91,5.6101]
[1735545370867,8.35754721,191.96,191.91,3.0]
[1735545371071,36.01438905,192.0,191.91,3.0]
[1735545371268,8.35754721,191.96,191.91,3.0]
[1735545379275,8.35754721,191.98,191.92,8.35754721]
[1735545379577,8.35754721,192.0,191.94,2.6096]
[1735545381385,8.35754721,192.0,191.93,2.6099]
[1735545385083,8.35754721,192.0,191.92,9.87584721]
[1735545385290,8.35754721,191.96,191.92,1.5183]
[1735545389790,3.0,192.07,191.92,1.5183]
[1735545389987,8.35754721,191.99,191.92,12.48584721]
[1735545391087,8.35754721,191.99,191.92,9.87584721]
[1735545391291,8.35754721,192.01,191.94,10.96724721]
[1735545391493,8.35754721,192.01,191.95,3.0]
[1735545392187,8.35754721,192.01,191.95,5.6095]
[1735545395697,8.35754721,192.01,191.95,3.0]
[1735545395896,8.35754721,192.03,191.96,8.35754721]
[1735545397193,8.35754721,192.03,191.97,2.6092]
[1735545399699,8.35754721,192.05,191.98,8.35754721]
[1735545400193,8.35754721,192.07,192.0,8.35754721]
[1735545400402,8.35754721,192.09,192.03,2.6085]
[1735545401397,8.35754721,192.09,192.02,8.35754721]
[1735545401594,8.35754721,192.07,192.01,2.98]
[1735545402703,8.35754721,192.05,192.01,2.98]
[1735545402898,8.35754721,192.05,191.99,8.7476]
[1735545403094,8.35754721,192.05,191.99,6.1386]
[1735545403302,8.35754721,192.03,191.99,2.98]
[1735545404005,8.35754721,192.03,191.96,12.52194721]
[1735545404304,8.35754721,192.03,191.97,2.98]
[1735545406004,2.98,192.09,191.99,2.609]
[1735545406005,8.35754721,192.05,191.99,2.609]
[1735545408705,8.35754721,192.07,192.01,2.6088]
[1735545410603,8.35754721,192.07,192.02,2.6086]
[1735545411195,8.35754721,192.07,192.02,5.5886]
[1735545411400,8.35754721,192.07,192.02,2.98]
[1735545411697,8.35754721,192.07,192.03,2.6085]
[1735545411904,8.35754721,192.09,192.03,2.6085]
[1735545414305,1.79429418,192.15,192.03,2.6085]
[1735545414506,8.35754721,192.08,192.03,2.6085]
[1735545421911,8.35754721,192.1,192.04,8.35754721]
[1735545422411,8.35754721,192.12,192.07,2.6079]
[1735545422602,8.35754721,192.12,192.07,5.5879]
[1735545429010,21.59179747,192.24,192.1,8.35754721]
[1735545429211,8.35754721,192.2,192.13,8.35754721]
[1735545429533,8.35754721,192.2,192.14,2.98]
[1735545429750,21.59179747,192.24,192.15,8.35754721]
[1735545430025,8.35754721,192.22,192.15,8.35754721]
[1735545431511,8.35754721,192.22,192.16,2.6067]
[1735545433217,1.76576123,192.29,192.15,8.35754721]
[1735545433418,8.35754721,192.23,192.17,2.6066]
[1735545433614,8.35754721,192.23,192.15,8.35754721]
[1735545434114,8.35754721,192.23,192.16,2.6068]
[1735545434714,8.35754721,192.23,192.15,8.35754721]
[1735545435019,8.35754721,192.23,192.15,10.96444721]
[1735545435210,4.74576123,192.29,192.15,10.96444721]
[1735545435416,8.35754721,192.22,192.15,10.96444721]
[1735545436018,8.35754721,192.2,192.12,2.6073]
[1735545436215,8.35754721,192.2,192.13,11.33754721]
[1735545436617,8.35754721,192.2,192.13,13.94464721]
[1735545437310,8.35754721,192.2,192.14,2.607]
[1735545438020,8.35754721,192.23,192.16,2.6067]
[1735545442419,8.35754721,192.23,192.15,8.35754721]
[1735545442627,8.35754721,192.23,192.17,2.6066]
[1735545442833,8.35754721,192.23,192.18,2.98]
[1735545445128,4.74576123,192.29,192.18,2.98]
[1735545445329,8.35754721,192.23,192.18,2.98]
[1735545451636,4.74576123,192.29,192.18,5.5865]
[1735545451842,8.35754721,192.24,192.18,2.98]
[1735545453444,8.35754721,192.24,192.2,2.6061]
[1735545453743,1.76576123,192.29,192.2,2.6061]
[1735545454040,8.35754721,192.25,192.2,2.6061]
[1735545455449,1.76576123,192.29,192.2,2.6061]
[1735545455743,8.35754721,192.25,192.2,2.6061]
[1735545457349,8.35754721,192.25,192.19,8.35754721]
[1735545458149,8.35754721,192.25,192.21,2.606]
[1735545459644,1.76576123,192.29,192.21,2.606]
[1735545459850,8.35754721,192.26,192.21,2.606]
[1735545463454,8.35754721,192.26,192.22,2.6059]
[1735545464853,8.35754721,192.26,192.19,8.35754721]
[1735545465055,8.35754721,192.26,192.22,2.6059]
[1735545465449,8.35754721,192.26,192.23,2.6058]
[1735545465953,1.76576123,192.29,192.21,8.35754721]
[1735545466254,10.12330844,192.29,192.21,8.35754721]
[1735545466454,10.12330844,192.29,192.23,8.35754721]
[1735545466654,10.12330844,192.29,192.24,2.98]
[1735545467252,10.12330844,192.29,192.26,2.6054]
[1735545467452,8.35754721,192.29,192.24,2.98]
[1735545467846,8.35754721,192.29,192.27,2.6053]
[1735545468655,8.35754721,192.29,192.24,2.98]
[1735545468958,8.35754721,192.29,192.26,2.6054]
[1735545469559,8.35754721,192.29,192.23,8.35754721]
[1735545469759,8.35754721,192.27,192.22,2.6058]
[1735545472548,8.35754721,192.27,192.23,2.6057]
[1735545474061,8.35754721,192.29,192.23,2.6057]
[1735545474256,21.59179747,192.39,192.21,2.98]
[1735545474461,3.76894009,192.38,192.24,8.35754721]
[1735545474660,40.67392073,192.38,192.24,8.35754721]
[1735545474863,8.35754721,192.32,192.24,8.35754721]
[1735545475365,8.35754721,192.32,192.27,2.6052]
[1735545475663,8.35754721,192.32,192.26,2.98]
[1735545475856,8.35754721,192.32,192.28,2.605]
[1735545476253,37.69392073,192.38,192.3,2.6049]
[1735545476561,8.35754721,192.36,192.3,2.6049]
[1735545477160,8.35754721,192.36,192.31,2.6047]
[1735545479866,8.35754721,192.36,192.3,8.35754721]
[1735545480164,8.35754721,192.36,192.32,2.6046]
[1735545480465,37.69392073,192.38,192.32,2.6046]
[1735545480664,46.05146794,192.38,192.32,8.35754721]
[1735545480855,46.05146794,192.38,192.33,2.6044]
[1735545481060,8.35754721,192.4,192.34,8.35754721]
[1735545481260,8.35754721,192.4,192.36,2.604]
[1735545481860,8.35754721,192.4,192.34,8.35754721]
[1735545482066,8.35754721,192.4,192.32,11.51854721]
[1735545482269,8.35754721,192.38,192.32,11.51854721]
[1735545483268,2.98,192.45,192.32,11.51854721]
[1735545483464,8.35754721,192.4,192.34,2.6043]
[1735545485168,8.35754721,192.4,192.34,10.96184721]
[1735545485362,8.35754721,192.42,192.35,2.6041]
[1735545485566,8.35754721,192.42,192.36,11.33754721]
[1735545486372,37.67478718,192.48,192.38,10.96124721]
[1735545486572,8.35754721,192.45,192.38,10.96124721]
[1735545486774,8.35754721,192.43,192.38,8.35754721]
[1735545486969,8.35754721,192.43,192.36,13.94144721]
[1735545487167,8.35754721,192.43,192.36,5.5839]
[1735545487470,8.35754721,192.43,192.37,8.35754721]
[1735545487864,8.35754721,192.44,192.37,8.35754721]
[1735545489272,8.35754721,192.46,192.39,8.35754721]
[1735545489967,8.35754721,192.46,192.39,10.96114721]
[1735545490273,8.35754721,192.48,192.41,8.35754721]
[1735545490573,2.57021375,192.53,192.43,8.35754721]
[1735545490772,8.35754721,192.5,192.43,8.35754721]
[1735545491170,8.35754721,192.5,192.43,10.96064721]
[1735545491968,2.57021375,192.53,192.45,8.35754721]
[1735545492366,8.35754721,192.52,192.45,8.35754721]
[1735545492577,8.35754721,192.52,192.46,2.98]
[1735545493980,8.35754721,192.54,192.47,8.35754721]
[1735545494976,8.35754721,192.54,192.46,2.98]
[1735545495473,8.35754721,192.52,192.46,2.98]
[1735545499380,8.35754721,192.52,192.46,5.5827]
[1735545499580,8.35754721,192.52,192.46,2.98]
[1735545499977,8.35754721,192.5,192.46,2.98]
[1735545500780,8.35754721,192.52,192.46,2.98]
[1735545511785,8.35754721,192.52,192.45,8.35754721]
[1735545512088,2.98,192.58,192.45,8.35754721]
[1735545512391,8.35754721,192.51,192.45,2.6028]
[1735545512594,8.35754721,192.51,192.44,2.98]
[1735545512789,8.35754721,192.51,192.44,5.5829]
[1735545513393,2.98,192.63,192.51,2.602]
[1735545513584,8.35754721,192.58,192.51,2.602]
[1735545515998,8.35754721,192.58,192.49,2.98]
[1735545516196,8.35754721,192.58,192.5,10.95964721]
[1735545516395,8.35754721,192.58,192.5,2.6021]
[1735545516697,8.35754721,192.58,192.5,10.95964721]
[1735545517587,8.35754721,192.58,192.51,2.6019]
[1735545520499,8.35754721,192.58,192.5,11.54354721]
[1735545520500,21.59179747,192.68,192.52,8.35754721]
[1735545520701,21.59179747,192.68,192.56,10.95884721]
[1735545520903,8.35754721,192.64,192.56,13.93884721]
[1735545521103,8.35754721,192.64,192.56,5.5813]
[1735545521304,8.35754721,192.64,192.56,13.93884721]
[1735545521702,8.35754721,192.64,192.56,11.33754721]
[1735545521907,21.59179747,192.68,192.58,8.35754721]
[1735545522102,8.35754721,192.65,192.58,8.35754721]
[1735545522403,8.35754721,192.66,192.59,2.6009]
[1735545523198,8.35754721,192.66,192.6,8.35754721]
[1735545523395,21.59179747,192.74,192.61,2.98]
[1735545523706,8.35754721,192.68,192.61,2.98]
[1735545524402,8.35754721,192.68,192.61,5.5806]
[1735545525004,8.35754721,192.68,192.61,2.98]
[1735545525300,86.43605045,192.75,192.64,8.35754721]
[1735545525499,86.43605045,192.75,192.66,8.35754721]
[1735545525805,8.35754721,192.73,192.66,11.33754721]
[1735545527303,8.35754721,192.73,192.66,13.93744721]
[1735545528003,8.35754721,192.73,192.66,11.33754721]
[1735545529596,54.08,192.83,192.66,11.33754721]
[1735545529796,8.35754721,192.74,192.66,11.33754721]
[1735545531103,8.35754721,192.74,192.68,8.35754721]
[1735545531498,2.98,192.79,192.68,8.35754721]
[1735545531699,8.35754721,192.74,192.68,8.35754721]
[1735545532801,8.35754721,192.76,192.68,8.35754721]
[1735545536305,8.35754721,192.76,192.69,2.98]
[1735545541411,8.35754721,192.74,192.68,11.33754721]
[1735545543508,8.35754721,192.74,192.68,2.98]
[1735545545517,8.35754721,192.74,192.68,11.33754721]
[1735545547014,8.35754721,192.76,192.68,11.33754721]
[1735545547916,8.35754721,192.74,192.68,2.98]
[1735545549921,2.98,192.81,192.68,2.98]
[1735545549922,8.35754721,192.72,192.68,2.98]
[1735545551417,8.35754721,192.72,192.64,2.6002]
[1735545551612,8.35754721,192.72,192.66,8.35754721]
[1735545553124,8.35754721,192.68,192.62,8.35754721]
[1735545553723,2.98,192.76,192.62,8.35754721]
[1735545553925,8.35754721,192.68,192.62,8.35754721]
[1735545554219,8.35754721,192.66,192.58,3.1022]
[1735545554420,8.35754721,192.62,192.39,15.65]
[1735545554620,8.35754721,192.58,192.49,8.35754721]
[1735545554922,8.35754721,192.55,192.49,8.35754721]
[1735545555121,8.35754721,192.55,192.51,7.25578316]
[1735545556317,8.35754721,192.55,192.49,8.35754721]
[1735545556724,8.35754721,192.55,192.49,11.33754721]
[1735545560528,8.35754721,192.57,192.49,11.33754721]
[1735545563329,8.35754721,192.55,192.49,11.33754721]
[1735545563929,8.35754721,192.55,192.49,2.98]
[1735545564421,8.35754721,192.53,192.41,2.6033]
[1735545564627,8.35754721,192.51,192.42,8.35754721]
[1735545564823,8.35754721,192.51,192.42,11.33754721]
[1735545565428,8.35754721,192.51,192.42,13.94074721]
[1735545566822,8.35754721,192.49,192.42,13.94074721]
[1735545569132,8.35754721,192.51,192.42,13.94074721]
[1735545571131,8.35754721,192.49,192.42,8.35754721]
[1735545571733,8.35754721,192.49,192.42,10.96074721]
[1735545575236,8.35754721,192.49,192.42,8.35754721]
[1735545577834,8.35754721,192.49,192.41,5.5833]
[1735545579839,8.35754721,192.47,192.41,2.98]
[1735545581335,8.35754721,192.45,192.39,4.1255]
[1735545581533,8.35754721,192.43,192.38,3.135]
[1735545589738,8.35754721,192.45,192.38,11.49254721]
[1735545589943,2.98,192.49,192.4,8.35754721]
[1735545590139,8.35754721,192.48,192.4,8.35754721]
[1735545590346,8.35754721,192.48,192.4,10.96104721]
[1735545592445,8.35754721,192.46,192.4,10.96104721]
[1735545593144,8.35754721,192.46,192.38,3.135]
[1735545593145,8.35754721,192.46,192.38,11.49254721]
[1735545593449,2.98,192.51,192.38,11.49254721]
[1735545593648,8.35754721,192.46,192.38,11.49254721]
[1735545593947,8.35754721,192.46,192.39,2.6036]
[1735545594347,8.35754721,192.46,192.39,10.96114721]
[1735545594543,8.35754721,192.46,192.39,8.35754721]
[1735545595254,8.35754721,192.44,192.38,3.135]
[1735545595649,2.98,192.51,192.38,3.135]
[1735545595852,8.35754721,192.43,192.38,3.135]
[1735545598856,8.35754721,192.45,192.38,3.135]
[1735545600557,2.98,192.51,192.38,3.135]
[1735545605158,21.73241712,192.55,192.38,3.135]
[1735545605355,2.98,192.54,192.38,3.135]
[1735545605561,2.98,192.53,192.38,3.135]
[1735545608261,0.78938803,192.52,192.38,3.135]
[1735545608661,33.38731835,192.52,192.38,3.135]
[1735545608861,33.38731835,192.52,192.39,1.5775]
[1735545609655,2.98,192.53,192.39,1.5775]
[1735545611160,21.73241712,192.56,192.39,1.5775]
[1735545611363,2.98,192.55,192.39,1.5775]
[1735545611558,21.73241712,192.56,192.39,1.5775]
[1735545613568,2.98,192.57,192.4,3.98586368]
[1735545613766,21.73241712,192.59,192.41,2.98]
[1735545613965,2.98,192.58,192.41,2.98]
[1735545614163,24.71241712,192.59,192.41,2.98]
[1735545614566,21.73241712,192.59,192.41,2.98]
[1735545614967,2.98,192.61,192.42,32.95654457]
[1735545615664,21.73241712,192.63,192.42,32.95654457]
[1735545615969,21.73241712,192.65,192.42,11.2285339]
[1735545616567,8.30006883,192.61,192.54,8.30006883]
[1735545616770,8.30006883,192.61,192.55,2.98]
[1735545617162,21.73241712,192.65,192.55,2.98]
[1735545617468,8.30006883,192.63,192.56,8.30006883]
[1735545620273,8.30006883,192.65,192.58,8.30006883]
[1735545621472,8.30006883,192.63,192.57,3.1437]
[1735545622769,2.98,192.71,192.57,3.1437]
[1735545622974,8.30006883,192.63,192.57,3.1437]
[1735545623170,2.98,192.71,192.57,3.1437]
[1735545623171,8.30006883,192.61,192.57,3.1437]
[1735545623672,8.30006883,192.63,192.57,3.1437]
[1735545629266,2.98,192.71,192.58,8.30006883]
[1735545629267,8.30006883,192.65,192.58,8.30006883]
[1735545630273,37.11552716,192.74,192.58,8.30006883]
[1735545630577,8.30006883,192.69,192.6,8.30006883]
[1735545630766,8.30006883,192.69,192.61,2.98]
[1735545630970,8.30006883,192.69,192.62,2.6004]
[1735545633377,8.30006883,192.69,192.62,8.30006883]
[1735545633575,8.30006883,192.69,192.63,2.6004]
[1735545633882,8.30006883,192.69,192.62,8.30006883]
[1735545634075,8.30006883,192.69,192.62,10.90056883]
[1735545635377,8.30006883,192.68,192.61,2.98]
[1735545637782,8.30006883,192.7,192.62,8.30006883]
[1735545639086,8.30006883,192.7,192.62,10.90026883]
[1735545639678,8.30006883,192.7,192.62,8.30006883]
[1735545639883,8.30006883,192.72,192.65,2.5999]
[1735545640187,8.30006883,192.72,192.66,11.26006883]
[1735545642583,248.06,192.88,192.7,8.30006883]
[1735545642783,8.30006883,192.79,192.72,8.30006883]
[1735545643480,54.06,192.88,192.72,8.30006883]
[1735545643790,8.30006883,192.79,192.72,8.30006883]
[1735545644789,2.96,192.87,192.71,2.96]
[1735545644790,8.30006883,192.77,192.71,2.96]
[1735545645487,215.73241712,192.97,192.72,8.30006883]
[1735545645788,8.30006883,192.78,192.72,8.30006883]
[1735545648081,195.03643053,192.97,192.72,8.30006883]
[1735545648293,8.30006883,192.84,192.76,8.30006883]
[1735545648486,8.30006883,192.84,192.76,11.26006883]
[1735545648794,8.30006883,192.8,192.76,2.96]
[1735545648982,8.30006883,192.82,192.76,2.96]
[1735545649284,8.30006883,192.82,192.76,11.26006883]
[1735545650192,8.30006883,192.84,192.76,11.26006883]
[1735545651984,8.30006883,192.86,192.78,8.30006883]
[1735545652793,8.30006883,192.86,192.8,8.30006883]
[1735545653389,8.30006883,192.87,192.8,8.30006883]
[1735545656194,1.03643053,192.97,192.82,8.30006883]
[1735545656395,8.30006883,192.9,192.82,8.30006883]
[1735545658187,54.04,193.0,192.82,8.30006883]
[1735545658393,54.04,193.0,192.84,8.30006883]
[1735545658394,0.78725342,192.99,192.84,8.30006883]
[1735545658691,8.30006883,192.92,192.84,8.30006883]
[1735545659290,8.30006883,192.92,192.86,8.30006883]
[1735545659490,8.30006883,192.92,192.86,11.26006883]